Cogmind - Beta 15 @@@ ROGUE MODE // 2025.09.10 @ 12:06:24 Player: the Result: Destroyed by G-67 Veteran via exploding Network Hub Performance ------------- Evolutions (4) 2000 Regions Visited (14) 2800 Robots Destroyed (56) 280 Value Destroyed (1605) 1605 Prototype IDs (15) 300 Alien Tech Used (0) 0 Bonus (3015) 3015 TOTAL SCORE: 10000 Bonus ------- Follower Combat Kills 1478 Awakened Behemoth Slayer 1000 Network Hubs Disabled 600 Built Enhanced Grunts 300 Met R17 at Cetus 500 Friendly Fire -863 Cogmind --------- Core Integrity 0/850 Matter 290/300 Energy 99/100 System Corruption 3% Temperature Cool (12) Movement Core (50) Location -6/Hub_04(d) Parts ------- > --- POWER (1) -------- (None) > --- PROPULSION (2) --- (None) > --- UTILITY (10) ----- Enhanced Optical Array Improved Signal Interpreter Improved Melee Analysis Suite Advanced Melee Analysis Suite Improved Target Analyzer Improved Target Analyzer Improved Hacking Suite Improved Hacking Suite Improved System Shield > --- WEAPON (2) ------- CR-A16's Behemoth Slayer > --- INVENTORY (5) ---- Advanced Transmission Jammer ECM Suite Hacking Drone Bay (1/1) Neutron Cannon Heavy Pick Peak State ------------ > --- POWER ------------ Makeshift Power Source > --- PROPULSION ------- Cooled Cesium-ion Thruster Cooled Cesium-ion Thruster > --- UTILITY ---------- Enhanced Optical Array Improved Signal Interpreter Improved Melee Analysis Suite Improved Melee Analysis Suite Improved Target Analyzer Improved Target Analyzer Advanced Transmission Jammer Makeshift Hacking Suite Hacking Drone Bay > --- WEAPON ----------- CR-A16's Pointy Stick Heavy Pick > --- INVENTORY -------- ECM Suite Improved Reaction Control System Cloaking Device [Rating: 72] Favorites ----------- Power Micro Nuclear Core Engine Makeshift Power Source Power Core Micro Nuclear Core Reactor Quantum Reactor Propulsion Cooled VTOL Module Flight Unit Cooled VTOL Module Utility Improved Melee Analysis Suite Device Structural Scanner Processor Improved Melee Analysis Suite Hackware Hacking Suite Protection Centrium Medium Armor Plating Weapon CR-A16's Pointy Stick Energy Gun EM Pulse Gun Energy Cannon Heavy Particle Cannon Ballistic Gun Light Assault Rifle Launcher Rocket Launcher Special Weapon Mining Laser Impact Weapon Hammer Slashing Weapon Katana Piercing Weapon CR-A16's Pointy Stick Special Melee Weapon Datajack Build | -11 -10 -10 -9 -8 -7 -7 -7 -7 -6 -6 -6 -6 -6 -6 ------- Run | Yrd Mat Min Mat Mat Fac Low Low Zio Pro Fac Ext Cet Arc Hub Slots Evolved 8 | . . . 2 2 2 . . . . 2 . . . . Power . | . . . . . . . . . . . . . . . Propulsion . | . . . . . . . . . . . . . . . Utility 8 | . . . 2 2 2 . . . . 2 . . . . Weapon . | . . . . . . . . . . . . . . . Parts Attached 75 | 4 9 5 3 5 16 . . 4 3 7 9 7 3 . Power 8 | . 1 1 . 1 . . . . 1 . 3 1 . . Engine 4 | . 1 1 . . . . . . 1 . 1 . . . Core 3 | . . . . 1 . . . . . . 2 . . . Reactor 1 | . . . . . . . . . . . . 1 . . Propulsion 11 | . 2 1 . 2 2 . . . . 3 1 . . . Treads . | . . . . . . . . . . . . . . . Leg . | . . . . . . . . . . . . . . . Wheel . | . . . . . . . . . . . . . . . Hover . | . . . . . . . . . . . . . . . Flight 11 | . 2 1 . 2 2 . . . . 3 1 . . . Utility 39 | 2 2 1 2 2 12 . . 2 1 4 4 4 3 . Device 16 | 2 1 1 . 1 5 . . 1 1 1 1 2 . . Storage . | . . . . . . . . . . . . . . . Processor 14 | . 1 . . 1 5 . . . . 3 3 1 . . Hackware 8 | . . . 2 . 2 . . 1 . . . . 3 . Protection 1 | . . . . . . . . . . . . 1 . . Artifact . | . . . . . . . . . . . . . . . Weapon 17 | 2 4 2 1 . 2 . . 2 1 . 1 2 . . Energy Gun 3 | . 1 . . . 1 . . . . . . 1 . . Energy Cannon 2 | . . 1 . . . . . . . . . 1 . . Ballistic Gun 3 | 2 1 . . . . . . . . . . . . . Ballistic Cannon . | . . . . . . . . . . . . . . . Launcher 1 | . . . . . 1 . . . . . . . . . Special Weapon 2 | . 1 . . . . . . 1 . . . . . . Impact Weapon 1 | . 1 . . . . . . . . . . . . . Slashing Weapon 2 | . . . 1 . . . . 1 . . . . . . Piercing Weapon 2 | . . . . . . . . . 1 . 1 . . . Special Melee Weapon 1 | . . 1 . . . . . . . . . . . . Unidentified Prototypes 9 | . 1 . . . 2 . . 2 . . . 4 . . Parts Lost 16 | . . . 2 1 . . . . 1 . 11 1 . . Power 4 | . . . . . . . . . . . 4 . . . Propulsion 4 | . . . 1 . . . . . . . 3 . . . Utility 8 | . . . 1 1 . . . . 1 . 4 1 . . Weapon . | . . . . . . . . . . . . . . . Highest Loss Streak 3 | . . . 2 1 . . . . 1 . 3 1 . . To Critical Strikes 1 | . . . . . . . . . . . 1 . . . Average Backups 4 | 2 4 5 5 4 4 5 4 5 4 4 3 4 5 4 Power . | . . . . . . . . . . . . . . . Propulsion . | . . . . 1 1 . . . . . . . . . Utility 2 | . 2 2 3 1 1 3 3 3 4 4 2 2 3 2 Weapon 1 | . 1 1 1 . 1 2 1 1 . . 1 1 2 2 Tool/Special . | . . . . . . . . . . . . . . . Unused Backups 9 | . 2 . . 1 4 . . . . 1 . . . 1 Power 2 | . 1 . . . 1 . . . . . . . . . Propulsion 3 | . . . . . 3 . . . . . . . . . Utility 2 | . . . . 1 . . . . . 1 . . . . Weapon 2 | . 1 . . . . . . . . . . . . 1 Tool/Special . | . . . . . . . . . . . . . . . Average Slot Usage (%) 81 | . 71 90 69 69 86 92 90 92 89 86 76 68 71 68 Engine 3 | . 8 14 9 . . . . . 5 5 2 . . . Core 2 | . . . . 6 7 7 7 7 1 . 2 . . . Flight 13 | . 17 28 20 16 15 15 15 15 15 13 10 . . . Device 12 | . 14 14 11 15 17 15 15 15 15 20 5 1 6 2 Processor 29 | . 2 14 9 4 17 30 30 30 30 33 41 55 49 40 Hackware 9 | . . . 6 18 20 15 15 15 15 6 6 4 9 20 Ballistic Gun 1 | . 18 . . . . . . . . . . . . . Impact Weapon 1 | . 1 13 3 . . . . . . . . . . . Slashing Weapon 1 | . . . 7 9 6 7 5 7 . . . . . . Piercing Weapon 3 | . . . . . . . . . 4 6 6 6 6 6 Peak Build Rating 72 | 3 9 13 18 30 47 45 47 59 48 67 72 62 58 62 Average Rating 41 | 2 5 9 12 25 39 45 44 50 46 52 55 51 56 56 On Entrance 34 | . 3 9 10 11 27 45 45 45 47 43 60 53 55 58 Naked Turns . | . . . . . . . . . . . . . . . Heaviest Build 12 | 3 8 9 8 10 11 10 10 10 10 11 12 9 3 3 Greatest Support 18 | 3 8 8 8 12 14 10 14 10 14 18 12 3 3 3 Greatest Overweight (x) 3 | . . 2 . . . . . . . 3 2 2 . . Average Overweight (x) . | . . . . . . . . . . . . . . . Largest Inventory Capacity 5 | 5 5 5 5 5 5 5 5 5 5 5 5 5 5 5 Average Capacity 5 | 5 5 5 5 5 5 5 5 5 5 5 5 5 5 5 Most Carried 5 | 4 5 5 5 5 5 5 5 5 5 5 5 5 5 5 Average Carried 4 | 2 4 4 5 4 4 5 4 4 4 4 3 4 5 4 Final Capacity 5 | 5 5 5 5 5 5 5 5 5 5 5 5 5 5 5 Final Carried 5 | 4 5 5 5 5 5 5 5 5 5 5 4 5 5 5 Class Distribution -------------------- 17% | Mutant 14% | Hacker-Scout 13% | Commander-Mutant 12% | Hacker-Mutant 12% | Infiltrator-Ninja 8% | Hacker-Sprinter 7% | Scavenger-Mutant 6% | Sprinter 3% | Ninja Dominant Class ---------------- Mutant | -10/Materials Mutant | -10/Mines Mutant | -9/Materials Hacker-Mutant | -8/Materials Hacker-Scout | -7/Factory Hacker-Scout | -7/Lower Caves Hacker-Scout | -7/Lower Caves Hacker-Sprinter | -7/Zion Hacker-Scout | -6/Proximity Caves Infiltrator-Ninja | -6/Factory Sprinter | -6/Extension Commander-Mutant | -6/Cetus Commander-Mutant | -6/Archives Hacker-Mutant | -6/Hub_04(d) Resources | -11 -10 -10 -9 -8 -7 -7 -7 -7 -6 -6 -6 -6 -6 -6 ----------- Run | Yrd Mat Min Mat Mat Fac Low Low Zio Pro Fac Ext Cet Arc Hub Matter Collected 1610 | 236 188 105 10 . 178 48 81 92 113 207 172 110 30 40 Remotely . | . . . . . . . . . . . . . . . Salvage Created 2511 | 129 214 . 38 17 280 . 30 . . 317 1333 8 108 37 Parts 141 | 12 12 . 4 2 17 . 5 . . 23 54 . 12 . Haulers Intercepted 2 | . . . . . . . . . . 2 . . . . Recyclers Shooed 4 | . . . . 1 . . . . . . 3 . . . Parts Field Recycled . | . . . . . . . . . . . . . . . Retrieved Matter . | . . . . . . . . . . . . . . . Parts Self-Destructed 5 | . . . . . . . 5 . . . . . . . Prevented . | . . . . . . . . . . . . . . . Kills | -11 -10 -10 -9 -8 -7 -7 -7 -7 -6 -6 -6 -6 -6 -6 ------- Run | Yrd Mat Min Mat Mat Fac Low Low Zio Pro Fac Ext Cet Arc Hub Combat Hostiles Destroyed 29 | . 5 . . . 5 . 4 . . 2 13 . . . Melee 15 | . . . . . 1 . . . . 2 12 . . . Guns 4 | . 4 . . . . . . . . . . . . . AOE 9 | . 1 . . . 4 . 4 . . . . . . . Classes Destroyed 15 | 2 4 . 1 . 2 . . . . 1 4 . . 1 Worker 4 | . 1 . . . 2 . . . . 1 . . . . Builder 1 | . . . . . 1 . . . . . . . . . Tunneler 4 | 3 . . . . . . . . . 1 . . . . Hauler 2 | . . . . . . . . . . 2 . . . . Recycler 6 | 1 . . . . 1 . . . . . 4 . . . Mechanic 1 | . 1 . . . . . . . . . . . . . Operator 7 | . . . 2 1 1 . . . . . . . 3 . Watcher 1 | . . . . . . . . . . . . . . 1 Swarmer 11 | . 3 . . . 4 . 4 . . . . . . . Grunt 7 | . 2 . . . . . . . . . 5 . . . Duelist 1 | . . . . . . . . . . . 1 . . . Sentry 4 | . . . . . . . . . . . 4 . . . Hunter 2 | . . . . . . . . . . . 2 . . . Programmer 3 | . . . . . 1 . . . . 2 . . . . Behemoth 1 | . . . . . . . . . . . 1 . . . Best Kill Streak 5 | 4 3 . 1 1 5 . 4 . . 2 4 . 2 1 Combat Bots Only 4 | . 3 . . . 4 . 4 . . 1 3 . . . Max Kills in Single Turn 4 | 1 1 . 1 1 4 . 2 . . 1 1 1 1 1 Gunslinging . | . . . . . . . . . . . . . . . Exploded 3 | . 1 . . . 3 . 2 . . . . . . . Melee 1 | . . . . . 1 . . . . 1 1 . . . Uniques/NPCs Destroyed 1 | . . . . . . . . . . . . 1 . . A7 (-6/Cetus) Combat | -11 -10 -10 -9 -8 -7 -7 -7 -7 -6 -6 -6 -6 -6 -6 -------- Run | Yrd Mat Min Mat Mat Fac Low Low Zio Pro Fac Ext Cet Arc Hub Hostile Shots Fired 274 | . 20 . 7 16 27 . 12 . 14 17 150 4 . 7 Missed 135 | . 9 . 3 11 21 . 4 . 7 11 66 1 . 2 Hits 139 | . 11 . 4 5 6 . 8 . 7 6 84 3 . 5 Melee 2 | . . . . . . . . . . . 2 . . . Projectile 137 | . 11 . 4 5 6 . 8 . 7 6 82 3 . 5 AOE 3 | . . . . . . . . . . . . . . 3 Critical Strikes 5 | . 1 . . 1 . . . . . . 2 . . 1 Damage Taken 2216 | . 164 31 50 122 64 . 132 . 106 95 1026 120 . 306 Core 1194 | . 58 . . 122 36 . 61 . 49 49 424 110 . 285 Absorbed by Shields 131 | . . . . . . . . . . . 131 . . . Regen/Repaired (Parts) 60 | . . . . . . . . 1 . 59 . . . . Core Remaining (%) 86 | 100 . 76 100 77 . . . . 79 . . . . . Volleys Fired 56 | 16 32 . . . 3 . 5 . . . . . . . Largest 2 | 2 2 . . . 1 . 1 . . . . . . . Hottest 100 | 40 100 . . . 33 . 33 . . . . . . . Shots Fired 78 | 32 38 . . . 3 . 5 . . . . . . . Gun 57 | 32 25 . . . . . . . . . . . . . Cannon . | . . . . . . . . . . . . . . . Launcher 8 | . . . . . 3 . 5 . . . . . . . Special 13 | . 13 . . . . . . . . . . . . . Kinetic 44 | 32 12 . . . . . . . . . . . . . Thermal 13 | . 13 . . . . . . . . . . . . . Explosive 8 | . . . . . 3 . 5 . . . . . . . Electromagnetic 13 | . 13 . . . . . . . . . . . . . Robot Hit Streak 5 | 4 5 . . . 1 . . . . . . . . . Robot Miss Streak 5 | 3 5 . . . 1 . . . . . . . . . Penetration Max . | . . . . . . . . . . . . . . . Secondary Targets 1 | . 1 . . . . . . . . . . . . . Max Gunslinging Chain 1 | . 1 . . . . . . . . . . . . . Shots Hit Robots 108 | 16 14 . 3 2 7 . . . . 14 44 4 3 1 Core Hits 71 | 7 11 . 2 . 12 . 7 . . 5 23 2 2 . Critical Kills . | . . . . . . . . . . . . . . . Critical Parts Destroyed . | . . . . . . . . . . . . . . . Critical Strikes 14 | . . . . . . . . . . 2 9 1 1 1 Impale 14 | . . . . . . . . . . 2 9 1 1 1 Melee Attacks 193 | . 2 . 8 13 30 2 11 1 4 57 53 4 3 5 Impact 2 | . 2 . . . . . . . . . . . . . Slashing 64 | . . . 8 13 29 2 11 1 . . . . . . Piercing 126 | . . . . . . . . . 4 57 53 4 3 5 Sneak Attacks 23 | . . . 1 2 4 . . . . 5 7 1 3 . Combat Hostiles 1 | . . . . . . . . . . . 1 . . . Follow-up Attacks . | . . . . . . . . . . . . . . . Damage Inflicted 4884 | 127 270 . 141 157 524 . 323 . . 794 1984 227 272 65 Guns 298 | 127 171 . . . . . . . . . . . . . Cannons . | . . . . . . . . . . . . . . . Explosions 657 | . 99 . . . 235 . 323 . . . . . . . Melee 3929 | . . . 141 157 289 . . . . 794 1984 227 272 65 Ramming . | . . . . . . . . . . . . . . . Kinetic 171 | 127 44 . . . . . . . . . . . . . Thermal 99 | . 99 . . . . . . . . . . . . . Explosive 558 | . . . . . 235 . 323 . . . . . . . Electromagnetic 127 | . 127 . . . . . . . . . . . . . Impact . | . . . . . . . . . . . . . . . Slashing 587 | . . . 141 157 289 . . . . . . . . . Piercing 3342 | . . . . . . . . . . 794 1984 227 272 65 Highest Corruption 2 | . . . . . 2 2 2 2 . . . . . 2 Average Corruption 2 | . . . . . 2 2 2 2 . . . . . 2 Corruption Purged . | . . . . . . . . . . . . . . . Corruption Blocked . | . . . . . . . . . . . . . . . Effects 11 | . . . . . 5 2 3 1 . . . . . . Message Errors 3 | . . . . . 1 . 1 1 . . . . . . Matter Fused 1 | . . . . . . 1 . . . . . . . . Heat Flow Errors 1 | . . . . . 1 . . . . . . . . . Energy Discharges 3 | . . . . . 3 . . . . . . . . . Data Loss (minor) 3 | . . . . . . 1 2 . . . . . . . Overload Shots . | . . . . . . . . . . . . . . . Overflow Damage 757 | . . . . 36 64 . 3 . . 142 233 12 152 115 Projectiles . | . . . . . . . . . . . . . . . Explosions 3 | . . . . . . . 3 . . . . . . . Melee 754 | . . . . 36 64 . . . . 142 233 12 152 115 Knockbacks . | . . . . . . . . . . . . . . . Impact . | . . . . . . . . . . . . . . . Kinetic . | . . . . . . . . . . . . . . . Secondary . | . . . . . . . . . . . . . . . Self-Inflicted Damage 50 | . 37 . . . 13 . . . . . . . . . Shots 2 | . 1 . . . 1 . . . . . . . . . Rammed . | . . . . . . . . . . . . . . . Targets Rammed . | . . . . . . . . . . . . . . . Kicked . | . . . . . . . . . . . . . . . Crushed . | . . . . . . . . . . . . . . . Highest Temperature 228 | . 140 . . . 228 . . . . . 8 . . 9 Average Temperature 51 | . 44 . . . 119 . . . . . 8 . . 9 Received Heat Transfer 551 | . 69 . 15 36 9 . 9 . . 9 328 9 . 67 Siege Activations . | . . . . . . . . . . . . . . . Martial Activations . | . . . . . . . . . . . . . . . Shielding Activations . | . . . . . . . . . . . . . . . Robots Disrupted . | . . . . . . . . . . . . . . . Combat Hostiles . | . . . . . . . . . . . . . . . Robots Corrupted . | . . . . . . . . . . . . . . . Combat Hostiles . | . . . . . . . . . . . . . . . Parts Fried 2 | . 1 . . . . . . . . . 1 . . . Impact Corruptions . | . . . . . . . . . . . . . . . Robots Melted . | . . . . . . . . . . . . . . . Combat Hostiles . | . . . . . . . . . . . . . . . Parts Melted . | . . . . . . . . . . . . . . . Heat Transferred 50 | . 50 . . . . . . . . . . . . . Parts Sabotaged . | . . . . . . . . . . . . . . . Parts Stolen . | . . . . . . . . . . . . . . . Parts Stripped . | . . . . . . . . . . . . . . . Power Chain Reactions 2 | . 2 . . . . . . . . . . . . . Alert | -11 -10 -10 -9 -8 -7 -7 -7 -7 -6 -6 -6 -6 -6 -6 ------- Run | Yrd Mat Min Mat Mat Fac Low Low Zio Pro Fac Ext Cet Arc Hub Maximum Alert Level 2 | . . . . . . . . . . . 1 2 1 . Low Security (%) 86 | 100 100 100 100 100 100 . . . . 100 77 5 48 100 Level 1 12 | . . . . . . . . . . . 22 78 51 . Level 2 1 | . . . . . . . . . . . . 15 . . Level 3 . | . . . . . . . . . . . . . . . Level 4 . | . . . . . . . . . . . . . . . Level 5 . | . . . . . . . . . . . . . . . High Security . | . . . . . . . . . . . . . . . Max Security . | . . . . . . . . . . . . . . . Peak Influence 425 | 10 107 45 35 22 180 . . . . 63 339 425 252 169 Initial 181 | . . 34 . 1 . . . . . . 25 181 138 81 Average 77 | 1 40 5 7 8 73 . . . . 11 94 350 200 118 Influence Increases 2837 | 20 241 45 55 63 364 . 150 . 15 260 738 494 204 188 Destroy 0b10 Robot/C 1120 | . 100 . . . 100 . 80 . . 40 440 220 80 60 Destroy 0b10 Robot/NC 160 | 20 10 . 10 5 25 . . . . 20 35 10 15 10 Destroy Leader 152 | . 20 . . . 20 . 10 . . 24 44 10 . 24 Allied During Kill 575 | . . . . . . . . . . . 193 240 88 54 Successful Hack 116 | . 12 . . 2 81 . . . . 16 5 . . . Disable Machine 75 | . . . 15 . 30 . . . . 15 . . 15 . Destroy Structure 144 | . 24 . . 11 33 . . . . 40 6 14 6 10 Partial Spotted 195 | . . . . 30 30 . . . . 105 15 . . 15 Lose Combat Pursuer 300 | . 75 45 30 15 45 . 60 . 15 . . . . 15 Influence Decreases 2798 | 20 153 133 50 65 338 29 50 100 15 207 466 474 317 381 Entered New Map 702 | . . 54 . 4 3 11 . 100 . . 28 144 207 151 Time Decay 1597 | 20 143 79 30 51 325 18 50 . 15 207 319 180 50 110 Lost Part 118 | . . . 20 10 . . . . . . 78 10 . . Lost Ally 381 | . 10 . . . 10 . . . . . 41 140 60 120 Squads Dispatched 20 | . 1 . 2 2 6 . . . . 6 2 1 . . Investigation 8 | . 1 . . 1 3 . . . . . 2 1 . . Extermination 6 | . . . . . 2 . . . . 4 . . . . Reinforcement 6 | . . . 2 1 1 . . . . 2 . . . . Assault . | . . . . . . . . . . . . . . . Garrison . | . . . . . . . . . . . . . . . Intercept . | . . . . . . . . . . . . . . . Searches Triggered . | . . . . . . . . . . . . . . . Construction Impeded . | . . . . . . . . . . . . . . . Haulers Reinforced 1 | . . . . . . . . . . 1 . . . . Active Scanning Responses . | . . . . . . . . . . . . . . . Cargo Convoy Interrupts . | . . . . . . . . . . . . . . . Stealth | -11 -10 -10 -9 -8 -7 -7 -7 -7 -6 -6 -6 -6 -6 -6 --------- Run | Yrd Mat Min Mat Mat Fac Low Low Zio Pro Fac Ext Cet Arc Hub Distress Signals 4 | . . . 1 1 1 . . . . 1 . . . . Communications Jammed 13 | . . . . . 13 . . . . . . . . . Distress Signals . | . . . . . . . . . . . . . . . Times Spotted 138 | . 17 2 9 10 18 . 10 . 5 18 27 10 4 8 Peak Tracking Total 8 | . 4 3 5 8 4 . 7 . 3 5 5 5 2 4 Tactical Retreats 21 | . 2 1 2 1 2 . 4 . 2 6 . . . 1 Traps | -11 -10 -10 -9 -8 -7 -7 -7 -7 -6 -6 -6 -6 -6 -6 ------- Run | Yrd Mat Min Mat Mat Fac Low Low Zio Pro Fac Ext Cet Arc Hub Traps Triggered 4 | . . 1 . . 1 . . . . . 2 . . . Indirectly . | . . . . . . . . . . . . . . . Trap Hack Attempts . | . . . . . . . . . . . . . . . Triggered . | . . . . . . . . . . . . . . . Disarmed 3 | . . . . 3 . . . . . . . . . . Reprogrammed 8 | . 8 . . . . . . . . . . . . . Reused . | . . . . . . . . . . . . . . . Traps Extracted 5 | . . 5 . . . . . . . . . . . . Installed . | . . . . . . . . . . . . . . . Triggered . | . . . . . . . . . . . . . . . Most Traps Carried 5 | . . 5 5 5 5 . . . . . . . . . Machines | -11 -10 -10 -9 -8 -7 -7 -7 -7 -6 -6 -6 -6 -6 -6 ---------- Run | Yrd Mat Min Mat Mat Fac Low Low Zio Pro Fac Ext Cet Arc Hub Machines Disabled 5 | . . . 1 . 2 . . . . 1 . . 1 . Max in Single Turn 1 | . . . 1 . 1 . . . . 1 . . . . Garrison Access 1 | . . . . . . . . . . 1 . . . . Network Hub 3 | . . . . . . . . . . . . . . 3 Machines Repaired . | . . . . . . . . . . . . . . . Machines Dismantled . | . . . . . . . . . . . . . . . Machines Sabotaged . | . . . . . . . . . . . . . . . Overloaded Fab Kills . | . . . . . . . . . . . . . . . Hacking | -11 -10 -10 -9 -8 -7 -7 -7 -7 -6 -6 -6 -6 -6 -6 --------- Run | Yrd Mat Min Mat Mat Fac Low Low Zio Pro Fac Ext Cet Arc Hub Machines Accessed 34 | . 4 1 1 4 16 . . . . 5 3 . . . Terminals 25 | . 4 . 1 4 12 . . . . 1 3 . . . Fabricators 4 | . . . . . 3 . . . . 1 . . . . Repair Stations 2 | . . . . . . . . . . 2 . . . . Recycling Units . | . . . . . . . . . . . . . . . Scanalyzers 1 | . . . . . 1 . . . . . . . . . Garrison Access 1 | . . . . . . . . . . 1 . . . . Total Hacks 90 | . 14 1 2 12 44 . . . . 11 5 1 . . Successful 53 | . 8 1 . 8 24 . . . . 9 3 . . . Failed 36 | . 6 . 2 4 19 . . . . 2 2 1 . . Catastrophic 3 | . 1 . . . 1 . . . . . . 1 . . Database Lockouts 1 | . . . . . 1 . . . . . . . . . Manual 23 | . 2 . 2 6 12 . . . . . . 1 . . Terminals 67 | . 14 . 2 12 32 . . . . 1 5 1 . . Fabricators 11 | . . . . . 10 . . . . 1 . . . . Repair Stations 8 | . . . . . . . . . . 8 . . . . Recycling Units . | . . . . . . . . . . . . . . . Scanalyzers 2 | . . . . . 2 . . . . . . . . . Garrison Access 1 | . . . . . . . . . . 1 . . . . Terminal Hacks 30 | . 6 1 . 6 13 . . . . 1 3 . . . Part Schematic 4 | . . . . . 4 . . . . . . . . . Prototype ID Bank 2 | . . . . 1 1 . . . . . . . . . Open Door 5 | . . 1 . . . . . . . 1 3 . . . Branch Access Points 2 | . . . . 1 1 . . . . . . . . . Fabricator Index 1 | . . . . . 1 . . . . . . . . . Locate Traps 4 | . 1 . . 1 2 . . . . . . . . . Disarm Traps 1 | . . . . 1 . . . . . . . . . . Reprogram Traps 2 | . 2 . . . . . . . . . . . . . Recall Investigation 3 | . . . . . 3 . . . . . . . . . Recall Extermination 1 | . . . . . 1 . . . . . . . . . Hauler Manifests 1 | . 1 . . . . . . . . . . . . . Registered Components 2 | . 1 . . 1 . . . . . . . . . . Zone Layout 2 | . 1 . . 1 . . . . . . . . . . Fabricator Hacks 7 | . . . . . 6 . . . . 1 . . . . Network Status 1 | . . . . . . . . . . 1 . . . . Load Schematic 3 | . . . . . 3 . . . . . . . . . Build 3 | . . . . . 3 . . . . . . . . . Repair Station Hacks 6 | . . . . . . . . . . 6 . . . . Scan Component 4 | . . . . . . . . . . 4 . . . . Repair 2 | . . . . . . . . . . 2 . . . . Recycling Unit Hacks . | . . . . . . . . . . . . . . . Scanalyzer 2 | . . . . . 2 . . . . . . . . . Insert Component 1 | . . . . . 1 . . . . . . . . . Analyze 1 | . . . . . 1 . . . . . . . . . Garrison Access Hacks 1 | . . . . . . . . . . 1 . . . . Seal Access 1 | . . . . . . . . . . 1 . . . . Unauthorized Hacks 7 | . 2 . . 2 3 . . . . . . . . . Terminals 7 | . 2 . . 2 3 . . . . . . . . . Assimilate 2 | . 1 . . . 1 . . . . . . . . . Botnet 5 | . 1 . . 2 2 . . . . . . . . . Fabricators . | . . . . . . . . . . . . . . . Repair Stations . | . . . . . . . . . . . . . . . Recycling Units . | . . . . . . . . . . . . . . . Scanalyzers . | . . . . . . . . . . . . . . . Garrison Access . | . . . . . . . . . . . . . . . Data Cores Recovered 1 | . . . . 1 . . . . . . . . . . Used . | . . . . . . . . . . . . . . . Hacking Detections 26 | . 2 . 1 4 13 . . . . 4 1 1 . . Full Trace Events 7 | . 1 . . 1 3 . . . . . 1 1 . . Feedback Events . | . . . . . . . . . . . . . . . Feedback Blocked . | . . . . . . . . . . . . . . . Robot Schematics Acquired 4 | . . . . . . . . 4 . . . . . . Robots Built . | . . . . . . . . . . . . . . . Authchips . | . . . . . . . . . . . . . . . Time . | . . . . . . . . . . . . . . . Total Robot Build Rating . | . . . . . . . . . . . . . . . Part Schematics Acquired 18 | . . . . . 5 . . 13 . . . . . . Parts Built 5 | . . . . . 5 . . . . . . . . . Authchips . | . . . . . . . . . . . . . . . Time 200 | . . . . . 200 . . . . . . . . . Total Part Build Rating 29 | . . . . . 29 . . . . . . . . . Parts Repaired 2 | . . . . . . . . . . 2 . . . . Time 48 | . . . . . . . . . . 48 . . . . Parts Recycled . | . . . . . . . . . . . . . . . Recycled Matter . | . . . . . . . . . . . . . . . Retrieved Matter . | . . . . . . . . . . . . . . . Retrieved Components . | . . . . . . . . . . . . . . . Parts Scanalyzed 1 | . . . . . 1 . . . . . . . . . Part Schematics Acquired 1 | . . . . . 1 . . . . . . . . . Parts Damaged . | . . . . . . . . . . . . . . . Bothacking | -11 -10 -10 -9 -8 -7 -7 -7 -7 -6 -6 -6 -6 -6 -6 ------------ Run | Yrd Mat Min Mat Mat Fac Low Low Zio Pro Fac Ext Cet Arc Hub Used RIF Installer . | . . . . . . . . . . . . . . . Robots Hacked 1 | . . . . . 1 . . . . . . . . . Non-combat 1 | . . . . . 1 . . . . . . . . . Combat . | . . . . . . . . . . . . . . . Robot Hacks Applied 1 | . . . . . 1 . . . . . . . . . parse_system 1 | . . . . . 1 . . . . . . . . . Relay Couplers Released . | . . . . . . . . . . . . . . . Fabnet Peak Effective % . | . . . . . . . . . . . . . . . Robots Rewired 14 | . . . . . . . . . . . 14 . . . Allies Hacked . | . . . . . . . . . . . . . . . Hacks Repelled . | . . . . . . . . . . . . . . . Allies | -11 -10 -10 -9 -8 -7 -7 -7 -7 -6 -6 -6 -6 -6 -6 -------- Run | Yrd Mat Min Mat Mat Fac Low Low Zio Pro Fac Ext Cet Arc Hub Total Allies 25 | . 1 . . . 1 . . . . . 18 5 . . Largest Group 17 | . 1 . . . 1 . . . . . 13 17 10 6 Highest-Rated Group 952 | . 10 . . . 10 . . . . . 524 952 499 321 Highest-Rated Ally 159 | . 10 . . . 10 . . . . . 159 159 96 96 Total Orders 15 | . . . . . . . . . . 5 5 1 . 4 RETURN 15 | . . . . . . . . . . 5 5 1 . 4 Ally Attacks 306 | . . . . . . . . . . . 107 122 41 36 Total Damage 7272 | . . . . . . . . . . . 2507 2843 1154 768 Kills 35 | . . . . . . . . . . . 13 13 5 4 Allies Corrupted 1 | . . . . . . . . . . . . . . 1 Allies Melted . | . . . . . . . . . . . . . . . Intel | -11 -10 -10 -9 -8 -7 -7 -7 -7 -6 -6 -6 -6 -6 -6 ------- Run | Yrd Mat Min Mat Mat Fac Low Low Zio Pro Fac Ext Cet Arc Hub Active Infowar (turns) 5914 | 43 388 612 91 172 790 106 272 333 185 956 1236 372 119 239 Optics 2161 | . . . . 87 . . . . . 108 1236 372 119 239 Sensors 2337 | . . . . . 688 106 272 44 185 953 89 . . . Structural 2257 | . . . . . 454 106 211 333 112 954 87 . . . Seismic 1639 | 43 388 591 91 172 354 . . . . . . . . . Machine Analysis 752 | . 64 612 76 . . . . . . . . . . . Cloaking 275 | . . . . . . . . . 24 216 35 . . . Jamming 269 | . . . . . 68 . . . . 1 197 2 . 1 ECM 843 | . . . . . 38 . 61 . 49 639 56 . . . Robot Analysis Total . | . . . . . . . . . . . . . . . Derelict Logs Recovered 5 | . . 2 . . . . 1 . 2 . . . . . Drone Launches 15 | . . . . . . . . . . 5 5 1 . 4 Drone Recoveries 15 | . . . . . . . . . . 5 5 1 . 4 Exploration | -11 -10 -10 -9 -8 -7 -7 -7 -7 -6 -6 -6 -6 -6 -6 ------------- Run | Yrd Mat Min Mat Mat Fac Low Low Zio Pro Fac Ext Cet Arc Hub Turns Passed 5963 | 85 388 612 91 172 790 106 272 333 185 963 1236 372 119 239 Spaces Moved 8693 | 47 442 816 173 289 1479 314 573 933 377 1685 971 255 77 262 Core 897 | 47 142 2 . . . . . . . 15 97 255 77 262 Treads . | . . . . . . . . . . . . . . . Legs . | . . . . . . . . . . . . . . . Wheels . | . . . . . . . . . . . . . . . Hover . | . . . . . . . . . . . . . . . Flight 7796 | . 300 814 173 289 1479 314 573 933 377 1670 874 . . . Fastest Speed 26 | 50 37 37 37 37 26 32 26 32 26 26 32 50 50 50 Average Speed 38 | 50 41 38 37 37 33 32 31 32 31 35 57 50 50 50 Slowest Speed 200 | 50 50 150 40 40 37 32 32 32 32 200 150 150 50 50 Overloaded Moves 30 | . . . . . 6 . 13 . 7 3 1 . . . Propulsion Burnouts . | . . . . . . . . . . . . . . . Robots Hopped 43 | . 3 3 1 6 . . . . . 26 4 . . . Potential Cave-ins . | . . . . . . . . . . . . . . . Cave-ins Triggered . | . . . . . . . . . . . . . . . Exploration Rate (%) 55 | 4 60 83 26 33 42 53 69 83 64 33 88 59 85 49 Regions Visited 14 Branch Regions 9 Pre-discovered Areas 1 | . . . . . . . . 1 . . . . . . Known Exits Taken 10 | . . 1 . . 1 1 1 1 1 1 1 1 1 . Unknown Exits Taken 4 | 1 1 . 1 1 . . . . . . . . . . Scrap Searched 9 | . . 1 . . . 1 1 4 2 . . . . . Spaces Dug 121 | . 6 . . 11 27 2 27 . 4 40 . . . 4 Terrain Destroyed 169 | . 25 . . 11 33 2 50 . 4 40 . . . 4 Melee 90 | . 1 . . 11 17 2 11 . 4 40 . . . 4 Projectile 12 | . 12 . . . . . . . . . . . . . AOE 67 | . 12 . . . 16 . 39 . . . . . . . Terrain Rammed . | . . . . . . . . . . . . . . . Walls Destroyed . | . . . . . . . . . . . . . . . Machines Disabled . | . . . . . . . . . . . . . . . Actions | -11 -10 -10 -9 -8 -7 -7 -7 -7 -6 -6 -6 -6 -6 -6 --------- Run | Yrd Mat Min Mat Mat Fac Low Low Zio Pro Fac Ext Cet Arc Hub Total 10790 | 80 574 1105 184 326 1727 315 640 965 431 1912 1528 488 152 363 Wait 1547 | 10 78 281 . 18 162 . 44 20 41 169 360 213 65 86 Move 8599 | 46 436 809 170 279 1478 313 572 932 376 1633 963 254 76 262 Hop 37 | . 2 3 1 3 . . . . . 25 3 . . . Pick Up 24 | 4 3 1 . 4 6 . . 2 . 3 . . 1 . Fast Attach 61 | 3 8 1 3 3 15 . 1 2 1 7 7 7 3 . Attach 27 | . . . . 1 6 . 2 1 1 4 7 1 . 4 Detach 26 | . . . . . 8 . 2 1 1 2 6 2 . 4 Swap 43 | 1 7 6 . 1 2 . 2 2 5 7 7 2 . 1 Drop 56 | . 6 4 2 4 17 . 1 4 2 5 1 5 4 1 Fire 56 | 16 32 . . . 3 . 5 . . . . . . . Melee 193 | . 2 . 8 13 30 2 11 1 4 57 53 4 3 5 Ram . | . . . . . . . . . . . . . . . Kick . | . . . . . . . . . . . . . . . Crush . | . . . . . . . . . . . . . . . Escape Stasis 36 | . . . . . . . . . . . 36 . . . Rewire 85 | . . . . . . . . . . . 85 . . . Trap . | . . . . . . . . . . . . . . . Miscellaneous . | . . . . . . . . . . . . . . . Route ------- -11/Scrapyard -10/Materials (discovered 4 exits: *Mat x3 / *Min) -10/Mines -9/Materials (discovered 2 exits: *Mat / [*Sto]) -8/Materials -7/Factory (discovered 4 exits: *Fac x2 / *Low x2) -7/Lower Caves -7/Lower Caves (discovered 2 exits: *Fac / *Zio) -7/Zion -6/Proximity Caves -6/Factory (discovered 4 exits: *Fac x2 / *Low / *Ext) -6/Extension (discovered 3 exits: *Fac x2 / *Cet) -6/Cetus (discovered 2 exits: *Fac / *Arc) -6/Archives (discovered 3 exits: *Fac / *Hub x2) -6/Hub_04(d) (discovered 4 exits: Fac x4) History --------- Turn | Location | Event 9 | -11/Scrapyard | Discovered new exit (range 15) 86 | -11/Scrapyard | Entered Materials 181 | -10/Materials | Discovered new exit (range 4) 270 | -10/Materials | Discovered new exit (range 11) 375 | -10/Materials | Discovered new exit (range 16) 442 | -10/Materials | Discovered new exit (range 4) 474 | -10/Materials | Entered Mines 481 | -10/Mines | Met a Derelict bent on vengeance 526 | -10/Mines | Identified exit to Materials 531 | -10/Mines | Met a Derelict who couldn't figure out how to use a Trap Extractor 730 | -10/Mines | Assembled infested the area 812 | -10/Mines | Learned Materials non-interactive machine intel 1083 | -10/Mines | Build established: Mutant 1086 | -10/Mines | Entered Materials 1086 | -9/Materials | Evolved 2 slots: Utility x2 1086 | -9/Materials | Discovered new exit (range 14) 1087 | -9/Materials | Loaded intel: 45 non-interactive machine locations 1145 | -9/Materials | Discovered new exit (range 13) 1177 | -9/Materials | Entered another Materials area 1177 | -8/Materials | Evolved 2 slots: Utility x2 1326 | -8/Materials | Discovered new exit (range 8) 1349 | -8/Materials | Entered Factory 1349 | -7/Factory | Evolved 2 slots: Utility x2 1443 | -7/Factory | Identified exit to Lower Caves 1488 | -7/Factory | Build established: Hacker-Mutant 1519 | -7/Factory | Fabricated Adv. Transmission Jammer (x2) 1708 | -7/Factory | Discovered new exit (range 10) 1745 | -7/Factory | Discovered new exit (range 13) 1749 | -7/Factory | Identified exit to Factory 1919 | -7/Factory | Fabricated Cloaking Device? 2115 | -7/Factory | Fabricated Imp. Hacking Suite (x1) 2135 | -7/Factory | Central database locked down 2139 | -7/Factory | Entered Lower Caves 2161 | -7/Lower Caves | Encountered a Warlord checkpoint 2174 | -7/Lower Caves | Build established: Hacker-Scout 2210 | -7/Lower Caves | Discovered new exit (range 14) 2231 | -7/Lower Caves | Identified exit to Lower Caves 2245 | -7/Lower Caves | Entered another Lower Caves area 2343 | -7/Lower Caves | Discovered exit to Factory (range 9) 2430 | -7/Lower Caves | Encountered a Warlord checkpoint 2432 | -7/Lower Caves | Learned 8 Factory zone layouts 2512 | -7/Lower Caves | Discovered new exit (range 16) 2517 | -7/Lower Caves | Identified exit to Zion 2517 | -7/Lower Caves | Entered Zion 2523 | -7/Zion | Given the Hacking Drone Bay 2523 | -7/Zion | Found Prototype Device 2523 | -7/Zion | Identified Hacking Drone Bay 2536 | -7/Zion | Given A8's code to call for help 2542 | -7/Zion | Discovered new exit (range 10) 2554 | -7/Zion | Acquired unknown access codes intercepted by a Zionite 2570 | -7/Zion | System corruption cleaned by Quarantine Array 2649 | -7/Zion | Found CR-A16's Pointy Stick 2715 | -7/Zion | Found Prototype Special Weapon 2715 | -7/Zion | Identified RU-N14's Throwing Claymores 2849 | -7/Zion | Identified exit to Proximity Caves 2850 | -7/Zion | Entered Proximity Caves 2962 | -6/Proximity Caves | Learned Factory trap positions 3031 | -6/Proximity Caves | Discovered exit to Factory (range 15) 3035 | -6/Proximity Caves | Entered Factory 3035 | -6/Factory | Evolved 2 slots: Utility x2 3036 | -6/Factory | Identified exit to Factory 3037 | -6/Factory | Loaded intel: 93 trap records 3414 | -6/Factory | Discovered exit to Factory (range 13) 3576 | -6/Factory | Build established: Infiltrator-Ninja 3643 | -6/Factory | Repaired Mak. Power Source 3708 | -6/Factory | Discovered new exit (range 6) 3784 | -6/Factory | Repaired ECM Suite 3877 | -6/Factory | Discovered new exit (range 14) 3881 | -6/Factory | Identified exit to Lower Caves 3998 | -6/Factory | Identified exit to Extension 3998 | -6/Factory | Entered Extension 4380 | -6/Extension | Rescued a captive Derelict 4417 | -6/Extension | Rescued A7 4637 | -6/Extension | Build established: Sprinter 4669 | -6/Extension | Spotted B-75 Beast 4671 | -6/Extension | Spotted B-75 Beast 4704 | -6/Extension | Revealed the true nature of CR-A16's Pointy Stick 4708 | -6/Extension | Destroyed B-75 Beast 4885 | -6/Extension | Rescued a captive Derelict 4887 | -6/Extension | Rescued a captive Derelict 4978 | -6/Extension | Core integrity fell below 50% 5107 | -6/Extension | Discovered new exit (range 6) 5166 | -6/Extension | Identified exit to Cetus 5182 | -6/Extension | Lost 3 parts (1p2n) 5184 | -6/Extension | Build established: Commander-Mutant 5234 | -6/Extension | Entered Cetus 5234 | -6/Cetus | Accompanied by 13 allies (A7) 5239 | -6/Cetus | Acquired a Cetus Manufacturing Module code from A7 5242 | -6/Cetus | Spotted Cetus Guard 5242 | -6/Cetus | Spotted Cetus Guard 5242 | -6/Cetus | Spotted Cetus Guard 5242 | -6/Cetus | Spotted Cetus Guard 5255 | -6/Cetus | Allies destroyed Cetus Guard 5258 | -6/Cetus | Allies destroyed Cetus Guard 5269 | -6/Cetus | Allies destroyed Cetus Guard 5281 | -6/Cetus | Allies destroyed Cetus Guard 5304 | -6/Cetus | Started Cetus Manufacturing Module 5329 | -6/Cetus | Manufactured an Enhanced Grunt 5354 | -6/Cetus | Manufactured an Enhanced Grunt 5379 | -6/Cetus | Manufactured an Enhanced Grunt 5404 | -6/Cetus | Manufactured an Enhanced Grunt 5429 | -6/Cetus | Manufactured an Enhanced Grunt 5445 | -6/Cetus | Discovered new exit (range 22) 5460 | -6/Cetus | Spotted Cetus Guard 5460 | -6/Cetus | Spotted Cetus Guard 5460 | -6/Cetus | Spotted Cetus Guard 5460 | -6/Cetus | Spotted Cetus Guard 5477 | -6/Cetus | Allies destroyed Cetus Guard 5485 | -6/Cetus | Allies destroyed Cetus Guard 5495 | -6/Cetus | Discovered exit to Factory (range 22) 5502 | -6/Cetus | Allies destroyed Cetus Guard 5502 | -6/Cetus | Allies destroyed Cetus Guard 5507 | -6/Cetus | Met Revision 17 5517 | -6/Cetus | Murdered A7 5519 | -6/Cetus | Extracted ID and sensor layout for unrecognized location from A7's data core 5529 | -6/Cetus | Lost 6 allies 5542 | -6/Cetus | Found Prototype Device 5542 | -6/Cetus | Identified Exp. Thermal Shield 5569 | -6/Cetus | Identified exit to Archives 5606 | -6/Cetus | Entered Archives 5606 | -6/Archives | Accompanied by 10 allies 5658 | -6/Archives | Discovered exit to Factory (range 16) 5662 | -6/Archives | Discovered new exit (range 14) 5687 | -6/Archives | Discovered new exit (range 20) 5694 | -6/Archives | Lost 4 allies 5700 | -6/Archives | Identified exit to Hub_04(d) 5725 | -6/Archives | Entered Hub_04(d) 5725 | -6/Hub_04(d) | Accompanied by 6 allies 5908 | -6/Hub_04(d) | Network Hub disabled 5908 | -6/Hub_04(d) | Network Hub disabled 5909 | -6/Hub_04(d) | Core integrity fell below 20% 5939 | -6/Hub_04(d) | Lost 5 allies 5964 | -6/Hub_04(d) | Network Hub disabled 5964 | -6/Hub_04(d) | Destroyed by G-67 Veteran via exploding Network Hub Last Messages --------------- 05908_ Network Hub explodes. 05908_ Terminal disabled. 05908_ K-01 Serf destroyed. 05908_ 15-644(g) destroyed. 05908_ R-10 Processor destroyed. 05908_ K-01 Serf destroyed. 05908_ Control Node disabled. 05908_ G-50 Soldier destroyed. 05908_ Door malfunctions. 05908_ K-01 Serf destroyed. 05908_ Emergency Access malfunctions. 05908_ Y-54 Guardian destroyed. 05908_ U0-DA7(b) destroyed. 05909_ G-50 Soldier system terminally corrupted. 05931_ U-05 Engineer exits Transfer Station. 05940_ Critical hit (Burn: +50). 05964_ ALERT: Network intrusion management efficiency at 65%. 05964_ Network Hub explodes. Map ----- +----------------------------------------------------+ | % # ???????? #" #????????? | | = # ?????? !#" #????????? | | ""# ?????? #" #????????? | | ==##/##########" #????????? | | =# #####" " #????????? | | " ! " " #????????? | | " !! #####" #?####???? | | ??# !! #???#" # ####? | | ??# ! #####""##+## """#? | | ## "#? | | + ] "#? | | ??##### "#? | | ??#######+#########+## """#? | | ??# ## = # ####? | | ??#"""" ## #?####???? | | ??#"""" ## #????????? | | ??#"""" ## #????????? | | ??#"""" ## #????????? | | ??# ## #????????? | | ??#"""" ## #????????? | | ??#"""" ##################??? | | ??#"""" + #??# !#??? | | ??#"""" # #??# gg #??? | | ??# # #??# #??? | | ??#"""" # #??# #??? | | ??#"""" !# #### @ #??? | | ??#"""" # + g#??? | | ??#"""" + + #??? | | ??# ## #### #??? | | ??#! ## #??# #??? | | ??###+###### #??# #??? | | ???????????# #??# #??? | | ???????????# #??############??? | | ???????????# #????????????????? | | ???????????# #????????????????? | | ???????????# #????????????????? | | ???????????# +????????????????? | | ????????????##????????????????? | | ??????????????????????????????? | | ??????????????????????????????? | | ??????????????????????????????? | | ??????????????????????????????? | | ??????????????????????????????? | | ??????????????????????????????? | | ??????????????????????????????? | | ??????????????????????????????? | | ??????????????????????????????? | | ??????????????????????????????? | | ??????????????????????????????? | | ??????????????????????????????? | +----------------------------------------------------+ Best States ------------- Heat Dissipation 56 Coolant Potential 65 Energy Generation 18 Energy Capacity 265 Matter Stores 300 Matter Capacity 300 Sight Range 22 Robot Scan Range 16 Terrain Scan Density 10 ECM Strength 1 Jamming Range 16 Cloak Strength 2 Armor Coverage 225 Evasion (%) 63 Melee Accuracy 31 Target Analysis 9 Core Analysis 6 Armor Integrity Analysis 30 Offensive Hacking 30 Defensive Hacking 12 Trap Extractor Capacity 6 Item Schematics ----------------- Mic. Nuclear Core | -7/Factory | Scanalyzed Imp. Melee Analysis Suite | -7/Factory | Hacked Imp. Hacking Suite | -7/Factory | Hacked Cloaking Device | -7/Factory | Hacked Adv. Signal Interpreter | -7/Factory | Hacked Adv. ECM Suite | -7/Zion | Archive Thermal Shield | -7/Zion | Archive Matter Filter | -7/Zion | Archive Jamming Amplifier | -7/Zion | Archive Transmission Jammer | -7/Zion | Archive Adv. Melee Analysis Suite | -7/Zion | Archive Lrn. Tractor Beam | -7/Zion | Archive Hvy. Phase Cannon | -7/Zion | Archive Gauss Rifle | -7/Zion | Archive Imp. Medium Treads | -7/Zion | Archive Drone Bay | -7/Zion | Archive Gatling Laser | -7/Zion | Archive Power Amplifier | -7/Zion | Archive Robot Schematics ------------------ A-02 Transporter | -7/Zion | Archive B-48 Gladiator | -7/Zion | Archive X-62 Marksman | -7/Zion | Archive X-82 Rainmaker | -7/Zion | Archive Fabricated ------------ Adv. Transmission Jammer | x2 | -7/Factory | Preloaded Cloaking Device | x2 | -7/Factory Imp. Hacking Suite | x1 | -7/Factory Repaired ---------- Mak. Power Source | 12% | -6/Factory ECM Suite | 25% | -6/Factory Alien Tech Used ----------------- None Achievements -------------- None Challenges ------------ None Game ------ Seed VisualScrapoidFragment Manual? 0 Play Time 01:47:39 Cumulative 314.2 hours Start 2025.09.10 @ 10:10:36 End 2025.09.10 @ 12:06:24 Sessions 1 Manual Loads 0 Difficulty Rogue Special Mode None Game No. 216 Rogue 216 Adventurer 0 Explorer 0 Win Type - Total 3 Types 3/0/0/0/0/0/0/0/0/0 Lore% 75 Gallery% 75 Achievement% 63 Wizard Run 0 Options --------- Layout 1 ASCII 0 Keyboard 0 Movement Mouse Keybinds 0 Fullscreen 1 Font 32/SmallcapsGlow Map View 50x35 Zoom Use 0% Tactical HUD 1 Map Filters NONE Filters NONE Steam 1 RUN: 1d63a5a5-1dc3-4bac-8b11-4f5c22eab4d5